Cogmind - Beta 14 @@@ ROGUE MODE // 2024.09.24 @ 18:17:38 Player: siona Result: Destroyed by 9Z-RWW(R) with Subdweller Laser Performance ------------- Evolutions (0) 0 Regions Visited (3) 600 Robots Destroyed (21) 105 Value Destroyed (762) 762 Prototype IDs (0) 0 Alien Tech Used (0) 0 Bonus (0) 0 TOTAL SCORE: 1467 Bonus ------- None Cogmind --------- Core Integrity 0/250 Matter 259/300 Energy 92/100 System Corruption 2% Temperature Cool (6) Movement Treading (160) Location -10/Subcaves Parts ------- > --- POWER (1) -------- (None) > --- PROPULSION (2) --- Spiked Treads Spiked Treads > --- UTILITY (2) ------ Small Storage Unit Core Shielding > --- WEAPON (2) ------- Beam Rifle Battle Cannon > --- INVENTORY (8) ---- Ion Engine Light Treads Light Treads Improved Heat Sink Makeshift Light Armor Plating Heavy Assault Rifle Mining Laser Peak State ------------ > --- POWER ------------ Improved Ion Engine > --- PROPULSION ------- Spiked Treads Spiked Treads > --- UTILITY ---------- Small Storage Unit Core Shielding > --- WEAPON ----------- Beam Rifle Battle Cannon > --- INVENTORY -------- Ion Engine Light Treads Light Treads Improved Heat Sink Makeshift Light Armor Plating Heavy Assault Rifle Mining Laser [Rating: 13] Favorites ----------- Power Improved Ion Engine Engine Improved Ion Engine Propulsion Light Treads Treads Light Treads Leg Aluminum Leg Utility Small Storage Unit Storage Small Storage Unit Protection Light Armor Plating Weapon Beam Rifle Energy Gun Beam Rifle Ballistic Gun Light Assault Rifle Ballistic Cannon Battle Cannon Launcher Grenade Launcher Special Weapon Mining Laser Build | -11 -10 -10 -10 ------- Run | Yrd Mat Min Sub Slots Evolved . | . . . . Power . | . . . . Propulsion . | . . . . Utility . | . . . . Weapon . | . . . . Parts Attached 33 | 7 8 11 7 Power 2 | 1 . 1 . Engine 2 | 1 . 1 . Core . | . . . . Reactor . | . . . . Propulsion 14 | 4 3 4 3 Treads 9 | 2 . 4 3 Leg 5 | 2 3 . . Wheel . | . . . . Hover . | . . . . Flight . | . . . . Utility 3 | . 1 1 1 Device . | . . . . Storage 1 | . 1 . . Processor . | . . . . Hackware . | . . . . Protection 2 | . . 1 1 Artifact . | . . . . Weapon 14 | 2 4 5 3 Energy Gun 4 | 1 1 1 1 Energy Cannon . | . . . . Ballistic Gun 6 | 1 3 2 . Ballistic Cannon 1 | . . . 1 Launcher 2 | . . 2 . Special Weapon 1 | . . . 1 Impact Weapon . | . . . . Slashing Weapon . | . . . . Piercing Weapon . | . . . . Special Melee Weapon . | . . . . Unidentified Prototypes . | . . . . Parts Lost 5 | . . 2 3 Power 1 | . . . 1 Propulsion 1 | . . 1 . Utility 1 | . . . 1 Weapon 2 | . . 1 1 Highest Loss Streak 2 | . . 2 1 To Critical Strikes . | . . . . Average Slot Usage (%) 91 | . 78 90 95 Engine 13 | . 14 14 13 Treads 20 | . . 12 28 Leg 6 | . 26 14 . Storage 13 | . 10 14 14 Protection 7 | . . 5 9 Energy Gun 11 | . 13 14 10 Ballistic Gun 3 | . 12 6 . Ballistic Cannon 2 | . . . 4 Launcher 7 | . . 7 9 Special Weapon 2 | . . . 3 Peak Build Rating 13 | 5 6 11 13 Average Rating 8 | 3 5 7 10 On Entrance 5 | . 5 6 10 Naked Turns . | . . . . Heaviest Build 21 | 8 13 21 21 Greatest Support 40 | 40 20 40 40 Greatest Overweight (x) 4 | . 4 1 . Average Overweight (x) . | . . . . Largest Inventory Capacity 8 | 5 8 8 8 Average Capacity 7 | 5 7 8 8 Most Carried 8 | 3 4 8 8 Average Carried 6 | 1 3 5 7 Final Capacity 8 | 5 8 8 8 Final Carried 8 | 3 4 8 7 Class Distribution -------------------- 52% | Mutant 47% | Scavenger-Mutant Dominant Class ---------------- Mutant | -10/Materials Scavenger-Mutant | -10/Mines Scavenger-Mutant | -10/Subcaves Resources | -11 -10 -10 -10 ----------- Run | Yrd Mat Min Sub Matter Collected 836 | 210 . 237 389 Remotely . | . . . . Salvage Created 609 | . . 252 357 Parts 43 | . . 20 23 Haulers Intercepted . | . . . . Recyclers Shooed 1 | . 1 . . Parts Field Recycled . | . . . . Retrieved Matter . | . . . . Parts Self-Destructed 8 | . . . 8 Prevented . | . . . . Kills | -11 -10 -10 -10 ------- Run | Yrd Mat Min Sub Combat Hostiles Destroyed 21 | . . 9 12 Guns 5 | . . 4 1 Cannons 1 | . . . 1 AOE 15 | . . 5 10 Classes Destroyed 4 | . . 3 1 Swarmer 3 | . . 3 . Grunt 7 | . . 4 3 Sentry 3 | . . 2 1 Subdweller 8 | . . . 8 Best Kill Streak 5 | . . 5 2 Combat Bots Only 5 | . . 5 2 Max Kills in Single Turn 3 | . . 3 2 Gunslinging . | . . . . Exploded 3 | . . 3 2 Melee . | . . . . Uniques/NPCs Destroyed . | . . . . Combat | -11 -10 -10 -10 -------- Run | Yrd Mat Min Sub Hostile Shots Fired 90 | . 18 37 35 Missed 27 | . 8 11 8 Damage Taken 1204 | . 104 419 681 Core 257 | . 40 115 102 Absorbed by Shields . | . . . . Redirected to Shielding 4 | . . . 4 Core Remaining (%) 100 | 100 . . . Volleys Fired 53 | . . 18 35 Largest 2 | . . 2 2 Hottest 100 | . . 86 100 Shots Fired 84 | . . 34 50 Gun 41 | . . 26 15 Cannon 6 | . . . 6 Launcher 28 | . . 8 20 Special 9 | . . . 9 Kinetic 16 | . . 10 6 Thermal 40 | . . 16 24 Explosive 28 | . . 8 20 Electromagnetic . | . . . . Robot Hit Streak 12 | . . 6 12 Robot Miss Streak 2 | . . 2 2 Penetration Max . | . . . . Secondary Targets 1 | . . 1 . Max Gunslinging Chain 1 | . . 1 . Shots Hit Robots 41 | . . 19 22 Core Hits 40 | . . 19 21 Critical Kills 1 | . . 1 . Critical Parts Destroyed . | . . . . Critical Strikes 1 | . . 1 . Destroy 1 | . . 1 . Melee Attacks . | . . . . Impact . | . . . . Slashing . | . . . . Piercing . | . . . . Sneak Attacks . | . . . . Combat Hostiles . | . . . . Follow-up Attacks . | . . . . Damage Inflicted 1690 | . 3 608 1079 Guns 318 | . . 217 101 Cannons 107 | . . . 107 Explosions 1262 | . . 391 871 Melee . | . . . . Ramming 3 | . 3 . . Kinetic 199 | . . 92 107 Thermal 226 | . . 125 101 Explosive 1262 | . . 391 871 Electromagnetic . | . . . . Impact . | . . . . Slashing . | . . . . Piercing . | . . . . Highest Corruption 2 | . 2 2 2 Average Corruption 2 | . 2 2 2 Corruption Purged . | . . . . Corruption Blocked . | . . . . Effects 14 | . 1 5 8 Message Errors 3 | . . . 3 Matter Fused 6 | . 1 1 4 Heat Flow Errors 1 | . . 1 . Energy Discharges 2 | . . 2 . Data Loss (minor) 2 | . . 1 1 Overload Shots . | . . . . Overflow Damage . | . . . . Projectiles . | . . . . Explosions . | . . . . Melee . | . . . . Knockbacks 1 | . . . 1 Impact . | . . . . Kinetic 1 | . . . 1 Secondary . | . . . . Self-Inflicted Damage 168 | . . 77 91 Shots 10 | . . 5 5 Rammed . | . . . . Targets Rammed 1 | . 1 . . Kicked 1 | . 1 . . Crushed . | . . . . Highest Temperature 251 | . . 233 251 Average Temperature 93 | . . 88 128 Received Heat Transfer 622 | . 60 153 409 Siege Activations . | . . . . Robots Corrupted . | . . . . Combat Hostiles . | . . . . Parts Fried . | . . . . Impact Corruptions . | . . . . Robots Melted . | . . . . Combat Hostiles . | . . . . Parts Melted 2 | . . 1 1 Heat Transferred 592 | . . 333 259 Parts Sabotaged . | . . . . Parts Stolen . | . . . . Parts Stripped . | . . . . Power Chain Reactions . | . . . . Alert | -11 -10 -10 -10 ------- Run | Yrd Mat Min Sub Peak Influence 275 | . 45 275 . Initial 17 | . . 17 . Average 93 | . 8 195 . Maximum Alert Level 1 | . . 1 . Low Security (%) 76 | 100 100 50 . Level 1 23 | . . 50 . Level 2 . | . . . . Level 3 . | . . . . Level 4 . | . . . . Level 5 . | . . . . High Security . | . . . . Max Security . | . . . . Squads Dispatched 1 | . 1 . . Investigation . | . . . . Extermination . | . . . . Reinforcement 1 | . 1 . . Assault . | . . . . Garrison . | . . . . Intercept . | . . . . Searches Triggered . | . . . . Construction Impeded . | . . . . Haulers Reinforced . | . . . . Active Scanning Responses . | . . . . Cargo Convoy Interrupts . | . . . . Stealth | -11 -10 -10 -10 --------- Run | Yrd Mat Min Sub Distress Signals 1 | . 1 . . Communications Jammed . | . . . . Distress Signals . | . . . . Times Spotted 25 | . 6 6 13 Peak Tracking Total 3 | . 3 3 2 Tactical Retreats 3 | . 2 1 . Traps | -11 -10 -10 -10 ------- Run | Yrd Mat Min Sub Traps Triggered 5 | . 5 . . Indirectly . | . . . . Trap Hack Attempts . | . . . . Triggered . | . . . . Disarmed . | . . . . Reprogrammed . | . . . . Reused . | . . . . Traps Extracted . | . . . . Installed . | . . . . Triggered . | . . . . Machines | -11 -10 -10 -10 ---------- Run | Yrd Mat Min Sub Machines Disabled . | . . . . Max in Single Turn . | . . . . Machines Repaired . | . . . . Machines Dismantled . | . . . . Machines Sabotaged . | . . . . Overloaded Fab Kills . | . . . . Hacking | -11 -10 -10 -10 --------- Run | Yrd Mat Min Sub Machines Accessed . | . . . . Terminals . | . . . . Fabricators . | . . . . Repair Stations . | . . . . Recycling Units . | . . . . Scanalyzers . | . . . . Garrison Access . | . . . . Total Hacks . | . . . . Successful . | . . . . Failed . | . . . . Catastrophic . | . . . . Database Lockouts . | . . . . Manual . | . . . . Terminals . | . . . . Fabricators . | . . . . Repair Stations . | . . . . Recycling Units . | . . . . Scanalyzers . | . . . . Garrison Access . | . . . . Terminal Hacks . | . . . . Fabricator Hacks . | . . . . Repair Station Hacks . | . . . . Recycling Unit Hacks . | . . . . Scanalyzer . | . . . . Garrison Access Hacks . | . . . . Unauthorized Hacks . | . . . . Terminals . | . . . . Fabricators . | . . . . Repair Stations . | . . . . Recycling Units . | . . . . Scanalyzers . | . . . . Garrison Access . | . . . . Data Cores Recovered . | . . . . Used . | . . . . Hacking Detections . | . . . . Full Trace Events . | . . . . Feedback Events . | . . . . Feedback Blocked . | . . . . Robot Schematics Acquired . | . . . . Robots Built . | . . . . Authchips . | . . . . Time . | . . . . Total Robot Build Rating . | . . . . Part Schematics Acquired . | . . . . Parts Built . | . . . . Authchips . | . . . . Time . | . . . . Total Part Build Rating . | . . . . Parts Repaired . | . . . . Time . | . . . . Parts Recycled . | . . . . Recycled Matter . | . . . . Retrieved Matter . | . . . . Retrieved Components . | . . . . Parts Scanalyzed . | . . . . Part Schematics Acquired . | . . . . Parts Damaged . | . . . . Bothacking | -11 -10 -10 -10 ------------ Run | Yrd Mat Min Sub Used RIF Installer . | . . . . Robots Hacked . | . . . . Non-combat . | . . . . Combat . | . . . . Robot Hacks Applied . | . . . . Relay Couplers Released . | . . . . Fabnet Peak Effective % . | . . . . Robots Rewired . | . . . . Allies Hacked . | . . . . Hacks Repelled . | . . . . Allies | -11 -10 -10 -10 -------- Run | Yrd Mat Min Sub Total Allies . | . . . . Largest Group . | . . . . Highest-Rated Group . | . . . . Highest-Rated Ally . | . . . . Total Orders . | . . . . Ally Attacks . | . . . . Total Damage . | . . . . Kills . | . . . . Allies Corrupted . | . . . . Allies Melted . | . . . . Intel | -11 -10 -10 -10 ------- Run | Yrd Mat Min Sub Robot Analysis Total . | . . . . Derelict Logs Recovered . | . . . . Drone Launches . | . . . . Drone Recoveries . | . . . . Exploration | -11 -10 -10 -10 ------------- Run | Yrd Mat Min Sub Turns Passed 1623 | 73 249 276 1025 Spaces Moved 951 | 51 194 137 569 Core 6 | 5 1 . . Treads 623 | 5 . 49 569 Legs 322 | 41 193 88 . Wheels . | . . . . Hover . | . . . . Flight . | . . . . Fastest Speed 50 | 50 120 120 160 Average Speed 146 | 117 121 136 160 Slowest Speed 250 | 160 250 190 160 Overloaded Moves . | . . . . Propulsion Burnouts . | . . . . Robots Hopped . | . . . . Cave-ins Triggered . | . . . . Exploration Rate (%) 30 | 4 49 23 45 Regions Visited 3 Branch Regions 2 Pre-discovered Areas . | . . . . Known Exits Taken . | . . . . Unknown Exits Taken 3 | 1 1 1 . Scrap Searched 3 | . . . 3 Spaces Dug 17 | . . 12 5 Terrain Destroyed 135 | . . 46 89 Melee . | . . . . Projectile . | . . . . AOE 135 | . . 46 89 Terrain Rammed . | . . . . Walls Destroyed . | . . . . Machines Disabled . | . . . . Actions | -11 -10 -10 -10 --------- Run | Yrd Mat Min Sub Total 1077 | 62 205 191 619 Wait 16 | . . 16 . Move 948 | 50 193 136 569 Hop . | . . . . Pick Up 15 | 3 3 5 4 Fast Attach 15 | 7 6 2 . Attach 5 | . 2 1 2 Detach . | . . . . Swap 13 | . . 8 5 Drop 11 | 2 . 5 4 Fire 53 | . . 18 35 Melee . | . . . . Ram . | . . . . Kick 1 | . 1 . . Crush . | . . . . Escape Stasis . | . . . . Rewire . | . . . . Trap . | . . . . Miscellaneous . | . . . . Route ------- -11/Scrapyard -10/Materials -10/Mines -10/Subcaves History --------- Turn | Location | Event 5 | -11/Scrapyard | Discovered new exit (range 14) 74 | -11/Scrapyard | Entered Materials 307 | -10/Materials | Build established: Mutant 317 | -10/Materials | Discovered new exit (range 6) 323 | -10/Materials | Entered Mines 458 | -10/Mines | Core integrity fell below 50% 583 | -10/Mines | Discovered new exit (range 7) 599 | -10/Mines | Entered Subcaves 755 | -10/Subcaves | Build established: Scavenger-Mutant 877 | -10/Subcaves | Core integrity fell below 20% 1520 | -10/Subcaves | Build established: Mutant 1624 | -10/Subcaves | Destroyed by 9Z-RWW(R) with Subdweller Laser Last Messages --------------- 01350_ Acquired 24 matter. 01357_ Searching scrap... 01357_ Found Mak. Light Armor Plating. 01357_ Found Sub. Laser. 01357_ Found 46 Matter. 01361_ Dropped Lgt. Armor Plating. 01361_ Acquired Mak. Light Armor Plating. 01378_ Subatomizers dissect the Sub. Laser. 01380_ The unstable cave ceiling collapses. 01392_ Subatomizers dissect the Sub. Laser. 01403_ System corrupted: Component data lost. 01460_ Dropped Lgt. Treads. 01460_ Acquired Spk. Treads. 01486_ VN,X3=A5SZ3EX7S2YIN4G/IDMWWS TZXE4 01507_ System corrupted: Matter fused (-6). 01545_ Acquired 5 matter. 01594_ PP/CBOSM>A%:0NDV8XR/VYSSBN12URPY 01616_ Imp. Ion Engine destroyed. 01616_ V5-FQR(R) destroyed. 01619_ 9Z-RWW(R) knocked back. Map ----- +----------------------------------------------------+ | ??????????????????????????????????????????# """" | | ??????????????????????????????????????????# """ | | ??????????????????????????????????????????#### """ | | ?????????????????????????????????????????????# """ | | ???????????????????????????????????????????? """ | | ????????????????????????????????????????????""""## | | ????????????????????????????????????????????""" ?# | | ???????????????????????????????????????????? ??? | | ?????????????????????????????????????????????????? | | ?????????????????????????????????????????????????? | | ????????????????????????? ???????????????????????? | | ????????????????????????? ???#???????????????????? | | ???????????????????????## ??# "??????????????????? | | ???????????????????????# ?? ???????????????????? | | ???????????????????????# ?? ???????? ?????????? | | ???????????????????????# ## ??????? ?????????? | | ?????????????????????### ????????"""?????????? | | ????????????????????? # % ????????" #?????????? | | ?????????????????????? ???????? #??#"?????? | | ?????????????????????? ????????? ###""?????? | | ??????????????????????? R%%????????? """"????? | | ???????????????????????# *#????????? """#????? | | ???????????????????????#$!%#?????????# " #?????? | | ???????????????????????# ![#????????## #???????? | | ???????????????????????# $ ####???### #???###### | | ???????????????????????# @ ## ##### #???# | | ???????????????????????## ## ##??## | | ????????????????????????# # # # # ##### | | ???????????????????# ### # ###### | | ???????????????????# ##???## | | ???????????????# ##### #????#### ### | | ???????????????# ?????## #??????# ##?# | | ????????????? ????????# #?????####??# | | ?????????????? ####?????????# ##???????????## # | | ????????????????????????????# ###?????????????#### | | ????????????????????????????# #??????????????????? | | ???????????????????????????? #??????????????????? | | ????????????????????????????###??????????????????? | | ?????????????????????????????????????????????????? | | ?????????????????????????????????????????????????? | | ?????????????????????????????????????????????????? | | ?????????????????????????????????????????????????? | | ?????????????????????????????????????????????????? | | ?????????????????????????????????????????????????? | | ?????????????????????????????????????????????????? | | ?????????????????????????????????????????????????? | | ?????????????????????????????????????????????????? | | ?????????????????????????????????????????????????? | | ?????????????????????????????????????????????????? | | ?????????????????????????????????????????????????? | +----------------------------------------------------+ Best States ------------- Heat Dissipation 25 Energy Generation 12 Energy Capacity 265 Matter Stores 300 Matter Capacity 300 Sight Range 16 Terrain Scan Density 10 Armor Coverage 150 Core Shielding 20 Evasion (%) 55 Recoil Reduction 2 Item Schematics ----------------- None Robot Schematics ------------------ None Fabricated ------------ Nothing Alien Tech Used ----------------- None Achievements -------------- Dramatic Entrance Challenges ------------ None Game ------ Seed AlphaFocalCanceller Manual? 0 Play Time 00:11:01 Cumulative 13.9 hours Start 2024.09.24 @ 18:07:45 End 2024.09.24 @ 18:17:38 Sessions 1 Manual Loads 0 Difficulty Rogue Special Mode None Game No. 28 Rogue 27 Adventurer 1 Explorer 0 Win Type - Total 0 Types 0/0/0/0/0/0/0/0/0 Lore% 11 Gallery% 16 Achievement% 17 Wizard Run 0 Options --------- Layout 1 ASCII 0 Keyboard 0 Movement Mouse Keybinds 0 Fullscreen 1 Font 32/SmallcapsGlow Map View 50x35 Zoom Use 0% Tactical HUD 1 Map Filters NONE Filters NONE Steam 1 RUN: 14e79663-8291-41f0-89c6-a65779da15e7